Workbook

Sheet Loan calculator
C3: College Loan Calculator
K4: $70,000 | N4: =TODAY()-701 -> 4425600.00%
L5: Estimated Annual Salary After Graduation | N5: Date you begin paying back loans
C7: It's suggested that your total monthly student loan repayments do not exceed 8% of your first year annual salary.
C10: Your combined current monthly payment is: | F10: =IFERROR(CollegeLoans[[#Totals],[Current Monthly Payment]],"") -> $106.07 | L10: Your combined scheduled monthly payment is: | O10: =IFERROR(CollegeLoans[[#Totals],[Scheduled Payment]],0) -> $190.92
C11: Percentage of current monthly income: | F11: =IFERROR(CollegeLoans[[#Totals],[Current Monthly Payment]]/EstimatedMonthlySalary,"") -> 1.82% | L11: Percentage of scheduled monthly income: | O11: =IFERROR(CollegeLoans[[#Totals],[Scheduled Payment]]/EstimatedMonthlySalary,"") -> 3.27%
C13: GENERAL LOAN DETAILS | H13: LOAN PAYBACK DATA | L13: PAYMENT DETAILS
C14: Loan No. | D14: Lender | E14: Loan Amount | F14: Annual Interest Rate | G14: Column1 | H14: Beginning Date | I14: Length (Yrs) | J14: Ending Date | K14: Column2 | L14: Current Monthly Payment | M14: Total Interest | N14: Scheduled Payment | O14: Annual Payment
C15: 10998M88 | D15: Woodgrove Bank | E15: $10,000.00 | F15: 5.00% | H15: 4459500.00% | I15: 10 | J15: =IF(AND(CollegeLoans[[#This Row],[Beginning Date]]>0,CollegeLoans[[#This Row],[Length (Yrs)]]>0),EDATE(CollegeLoans[[#This Row],[Beginning Date]],CollegeLoans[[#This Row],[Length (Yrs)]]*12),"") -> 4824700.00% | L15: =IFERROR(IF(AND(LoanStartLToday,COUNT(CollegeLoans[[#This Row],[Loan Amount]:[Length (Yrs)]])=4,CollegeLoans[[#This Row],[Beginning Date]]<=TODAY()),PMT(CollegeLoans[[#This Row],[Annual Interest Rate]]/12,CollegeLoans[[#This Row],[Length (Yrs)]]*12,-CollegeLoans[[#This Row],[Loan Amount]],0,0),""),0) -> $106.07 | M15: =IFERROR((CollegeLoans[[#This Row],[Scheduled Payment]]*(CollegeLoans[[#This Row],[Length (Yrs)]]*12))-CollegeLoans[[#This Row],[Loan Amount]],"") -> $2,727.86 | N15: =IF(COUNTA(CollegeLoans[[#This Row],[Loan Amount]:[Length (Yrs)]])<>4,"",PMT(CollegeLoans[[#This Row],[Annual Interest Rate]]/12,CollegeLoans[[#This Row],[Length (Yrs)]]*12,-CollegeLoans[[#This Row],[Loan Amount]],0,0)) -> $106.07 | O15: =IFERROR(CollegeLoans[[#This Row],[Scheduled Payment]]*12,"") -> $1,272.79
C16: 20987N87 | D16: Ducat Bank | E16: $8,000.00 | F16: 5.00% | H16: =DATE(YEAR(TODAY()),5,1) -> 4504700.00% | I16: 10 | J16: =IF(AND(CollegeLoans[[#This Row],[Beginning Date]]>0,CollegeLoans[[#This Row],[Length (Yrs)]]>0),EDATE(CollegeLoans[[#This Row],[Beginning Date]],CollegeLoans[[#This Row],[Length (Yrs)]]*12),"") -> 4870000.00% | L16: =IFERROR(IF(AND(LoanStartLToday,COUNT(CollegeLoans[[#This Row],[Loan Amount]:[Length (Yrs)]])=4,CollegeLoans[[#This Row],[Beginning Date]]<=TODAY()),PMT(CollegeLoans[[#This Row],[Annual Interest Rate]]/12,CollegeLoans[[#This Row],[Length (Yrs)]]*12,-CollegeLoans[[#This Row],[Loan Amount]],0,0),""),0) ->  | M16: =IFERROR((CollegeLoans[[#This Row],[Scheduled Payment]]*(CollegeLoans[[#This Row],[Length (Yrs)]]*12))-CollegeLoans[[#This Row],[Loan Amount]],"") -> $2,182.29 | N16: =IF(COUNTA(CollegeLoans[[#This Row],[Loan Amount]:[Length (Yrs)]])<>4,"",PMT(CollegeLoans[[#This Row],[Annual Interest Rate]]/12,CollegeLoans[[#This Row],[Length (Yrs)]]*12,-CollegeLoans[[#This Row],[Loan Amount]],0,0)) -> $84.85 | O16: =IFERROR(CollegeLoans[[#This Row],[Scheduled Payment]]*12,"") -> $1,018.23
J17: =IF(AND(CollegeLoans[[#This Row],[Beginning Date]]>0,CollegeLoans[[#This Row],[Length (Yrs)]]>0),EDATE(CollegeLoans[[#This Row],[Beginning Date]],CollegeLoans[[#This Row],[Length (Yrs)]]*12),"") ->  | L17: =IFERROR(IF(AND(LoanStartLToday,COUNT(CollegeLoans[[#This Row],[Loan Amount]:[Length (Yrs)]])=4,CollegeLoans[[#This Row],[Beginning Date]]<=TODAY()),PMT(CollegeLoans[[#This Row],[Annual Interest Rate]]/12,CollegeLoans[[#This Row],[Length (Yrs)]]*12,-CollegeLoans[[#This Row],[Loan Amount]],0,0),""),0) ->  | M17: =IFERROR((CollegeLoans[[#This Row],[Scheduled Payment]]*(CollegeLoans[[#This Row],[Length (Yrs)]]*12))-CollegeLoans[[#This Row],[Loan Amount]],"") ->  | N17: =IF(COUNTA(CollegeLoans[[#This Row],[Loan Amount]:[Length (Yrs)]])<>4,"",PMT(CollegeLoans[[#This Row],[Annual Interest Rate]]/12,CollegeLoans[[#This Row],[Length (Yrs)]]*12,-CollegeLoans[[#This Row],[Loan Amount]],0,0)) ->  | O17: =IFERROR(CollegeLoans[[#This Row],[Scheduled Payment]]*12,"") -> 
J18: =IF(AND(CollegeLoans[[#This Row],[Beginning Date]]>0,CollegeLoans[[#This Row],[Length (Yrs)]]>0),EDATE(CollegeLoans[[#This Row],[Beginning Date]],CollegeLoans[[#This Row],[Length (Yrs)]]*12),"") ->  | L18: =IFERROR(IF(AND(LoanStartLToday,COUNT(CollegeLoans[[#This Row],[Loan Amount]:[Length (Yrs)]])=4,CollegeLoans[[#This Row],[Beginning Date]]<=TODAY()),PMT(CollegeLoans[[#This Row],[Annual Interest Rate]]/12,CollegeLoans[[#This Row],[Length (Yrs)]]*12,-CollegeLoans[[#This Row],[Loan Amount]],0,0),""),0) ->  | M18: =IFERROR((CollegeLoans[[#This Row],[Scheduled Payment]]*(CollegeLoans[[#This Row],[Length (Yrs)]]*12))-CollegeLoans[[#This Row],[Loan Amount]],"") ->  | N18: =IF(COUNTA(CollegeLoans[[#This Row],[Loan Amount]:[Length (Yrs)]])<>4,"",PMT(CollegeLoans[[#This Row],[Annual Interest Rate]]/12,CollegeLoans[[#This Row],[Length (Yrs)]]*12,-CollegeLoans[[#This Row],[Loan Amount]],0,0)) ->  | O18: =IFERROR(CollegeLoans[[#This Row],[Scheduled Payment]]*12,"") -> 
J19: =IF(AND(CollegeLoans[[#This Row],[Beginning Date]]>0,CollegeLoans[[#This Row],[Length (Yrs)]]>0),EDATE(CollegeLoans[[#This Row],[Beginning Date]],CollegeLoans[[#This Row],[Length (Yrs)]]*12),"") ->  | L19: =IFERROR(IF(AND(LoanStartLToday,COUNT(CollegeLoans[[#This Row],[Loan Amount]:[Length (Yrs)]])=4,CollegeLoans[[#This Row],[Beginning Date]]<=TODAY()),PMT(CollegeLoans[[#This Row],[Annual Interest Rate]]/12,CollegeLoans[[#This Row],[Length (Yrs)]]*12,-CollegeLoans[[#This Row],[Loan Amount]],0,0),""),0) ->  | M19: =IFERROR((CollegeLoans[[#This Row],[Scheduled Payment]]*(CollegeLoans[[#This Row],[Length (Yrs)]]*12))-CollegeLoans[[#This Row],[Loan Amount]],"") ->  | N19: =IF(COUNTA(CollegeLoans[[#This Row],[Loan Amount]:[Length (Yrs)]])<>4,"",PMT(CollegeLoans[[#This Row],[Annual Interest Rate]]/12,CollegeLoans[[#This Row],[Length (Yrs)]]*12,-CollegeLoans[[#This Row],[Loan Amount]],0,0)) ->  | O19: =IFERROR(CollegeLoans[[#This Row],[Scheduled Payment]]*12,"") -> 
J20: =IF(AND(CollegeLoans[[#This Row],[Beginning Date]]>0,CollegeLoans[[#This Row],[Length (Yrs)]]>0),EDATE(CollegeLoans[[#This Row],[Beginning Date]],CollegeLoans[[#This Row],[Length (Yrs)]]*12),"") ->  | L20: =IFERROR(IF(AND(LoanStartLToday,COUNT(CollegeLoans[[#This Row],[Loan Amount]:[Length (Yrs)]])=4,CollegeLoans[[#This Row],[Beginning Date]]<=TODAY()),PMT(CollegeLoans[[#This Row],[Annual Interest Rate]]/12,CollegeLoans[[#This Row],[Length (Yrs)]]*12,-CollegeLoans[[#This Row],[Loan Amount]],0,0),""),0) ->  | M20: =IFERROR((CollegeLoans[[#This Row],[Scheduled Payment]]*(CollegeLoans[[#This Row],[Length (Yrs)]]*12))-CollegeLoans[[#This Row],[Loan Amount]],"") ->  | N20: =IF(COUNTA(CollegeLoans[[#This Row],[Loan Amount]:[Length (Yrs)]])<>4,"",PMT(CollegeLoans[[#This Row],[Annual Interest Rate]]/12,CollegeLoans[[#This Row],[Length (Yrs)]]*12,-CollegeLoans[[#This Row],[Loan Amount]],0,0)) ->  | O20: =IFERROR(CollegeLoans[[#This Row],[Scheduled Payment]]*12,"") -> 
C21: Totals | E21: =SUBTOTAL(109,CollegeLoans[Loan Amount]) -> $18,000.00 | L21: =SUBTOTAL(109,CollegeLoans[Current Monthly Payment]) -> $106.07 | M21: =SUBTOTAL(109,CollegeLoans[Total Interest]) -> $4,910.15 | N21: =SUBTOTAL(109,CollegeLoans[Scheduled Payment]) -> $190.92 | O21: =SUBTOTAL(109,CollegeLoans[Annual Payment]) -> $2,291.02
C22: Averages | E22: =AVERAGE(CollegeLoans[Loan Amount]) -> $9,000.00 | F22: =AVERAGE(CollegeLoans[Annual Interest Rate]) -> 5.00% | M22: =AVERAGE(CollegeLoans[Total Interest]) -> $2,455.08 | O22: =AVERAGE(CollegeLoans[Annual Payment]) -> $1,145.51
L24: Total consolidated loan payback: | N24: Estimated monthly income after graduation:
L25: =CollegeLoans[[#Totals],[Loan Amount]]+CollegeLoans[[#Totals],[Total Interest]] -> $22,910.15 | N25: =(EstimatedAnnualSalary/12) -> $5,833.33
